bitfinex/quotes_SOLUSD_20260118
["timestamp","ask_amount","ask_price","bid_price","bid_amount"]
[1768776318097,2.1112091,142.76,142.73,1.2460838]
[1768776318305,3.02543136,142.77,142.74,1.2460838]
[1768776318483,3.02543136,142.77,142.74,8.25176246]
[1768776318903,3.02543136,142.77,142.74,1.2460838]
[1768776319587,3.02543136,142.77,142.75,30.0]
[1768776320816,0.91422226,142.77,142.75,30.0]
[1768776322807,7.91858227,142.77,142.75,30.0]
[1768776324807,7.00436001,142.77,142.75,30.0]
[1768776325009,0.92050683,142.76,142.75,30.0]
[1768776325209,7.92486684,142.77,142.75,30.0]
[1768776326503,7.92486684,142.77,142.74,1.14287645]
[1768776327387,10.03607594,142.77,142.74,1.14287645]
[1768776329709,7.92486684,142.77,142.74,1.14287645]
[1768776335110,10.03607594,142.77,142.74,1.14287645]
[1768776336408,7.92486684,142.77,142.74,1.14287645]
[1768776336607,10.03607594,142.77,142.74,1.14287645]
[1768776337796,7.92486684,142.77,142.74,1.14287645]
[1768776341221,10.04818458,142.76,142.72,23.57613659]
[1768776341401,7.87697548,142.76,142.72,16.56978592]
[1768776341601,9.98818458,142.76,142.72,1.22978592]
[1768776344915,2.1112091,142.75,142.72,1.22978592]
[1768776345123,2.0512091,142.75,142.72,8.23650148]
[1768776346220,9.98818458,142.76,142.72,8.23650148]
[1768776346518,9.98818458,142.76,142.73,1.22978592]
[1768776347321,2.98707891,142.75,142.72,1.22978592]
[1768776347821,2.1112091,142.74,142.72,1.22978592]
[1768776348022,2.98707891,142.75,142.72,1.22978592]
[1768776349217,9.99266839,142.75,142.72,1.22978592]
[1768776349399,2.1112091,142.73,142.7,1.22978592]
[1768776349600,2.05120909,142.73,142.7,1.22978592]
[1768776352325,9.05759934,142.73,142.7,1.22978592]
[1768776352913,7.00639025,142.73,142.7,1.22978592]
[1768776353115,9.11759935,142.73,142.7,1.22978592]
[1768776353314,2.1112091,142.72,142.7,1.22978592]
[1768776353514,9.11759935,142.73,142.7,1.17204473]
[1768776355129,9.05759935,142.73,142.7,1.17204473]
[1768776358625,3.28814617,142.71,142.67,7.00902028]
[1768776358934,3.16814612,142.71,142.68,30.0]
[1768776359722,10.17571484,142.71,142.68,30.0]
[1768776360640,10.17571484,142.71,142.68,31.17204473]
[1768776361539,2.1112091,142.7,142.68,31.17204473]
[1768776361722,2.1112091,142.7,142.68,1.17204473]
[1768776362138,10.29571489,142.71,142.68,1.17204473]
[1768776366454,9.1189977,142.7,142.68,1.17204473]
[1768776368775,7.0077886,142.7,142.68,1.17204473]
[1768776368962,9.12133498,142.7,142.68,1.17204473]
[1768776369651,9.06133497,142.7,142.68,1.17204473]
[1768776372771,2.11354638,142.7,142.68,1.17204473]
[1768776375974,2.11354638,142.69,142.68,1.17204473]
[1768776376359,2.05354638,142.69,142.68,1.17204473]
[1768776376555,2.11354638,142.7,142.68,1.17204473]
[1768776377175,2.11354638,142.69,142.68,1.17204473]
[1768776379084,2.11354638,142.7,142.68,1.17204473]
[1768776382608,9.12128555,142.7,142.68,1.17204473]
[1768776385176,7.00773917,142.7,142.68,1.17204473]
[1768776387290,8.25189358,142.7,142.65,9.12366989]
[1768776387495,8.25189358,142.7,142.66,30.0]
[1768776388495,7.00773917,142.7,142.66,30.0]
[1768776388698,1.24415441,142.69,142.66,30.0]
[1768776388885,1.1841544,142.69,142.66,31.14130288]
[1768776389088,1.1841544,142.69,142.66,1.14130288]
[1768776389990,26.63807183,142.72,142.66,1.14130288]
[1768776391410,89.43807183,142.72,142.66,1.14130288]
[1768776391908,8.25186288,142.7,142.66,1.14130288]
[1768776396614,1.24415441,142.69,142.66,1.14130288]
[1768776396795,1.1841544,142.69,142.66,1.14130288]
[1768776402902,1.12415439,142.69,142.66,1.14130288]
[1768776404317,7.00862541,142.69,142.65,1.20639439]
[1768776404826,1.21142388,142.68,142.65,1.20639439]
[1768776404996,1.15142386,142.68,142.65,1.20639439]
[1768776405598,8.16018376,142.68,142.65,1.20639439]
[1768776410521,8.10018373,142.68,142.65,1.20639439]
[1768776411325,1.09142383,142.68,142.65,1.20639439]
[1768776417240,1.03142379,142.68,142.65,1.20639439]
[1768776417907,8.04030612,142.68,142.65,1.20639439]
[1768776422332,7.98030612,142.68,142.65,1.20639439]
[1768776422534,7.00819959,142.69,142.65,1.20639439]
[1768776424537,1.20859627,142.68,142.65,1.20639439]
[1768776425552,1.14859628,142.68,142.65,1.20639439]
[1768776431561,1.08859629,142.68,142.65,1.20639439]
[1768776438782,1.0285963,142.68,142.65,1.20639439]
[1768776445975,0.96859631,142.68,142.65,1.20639439]
[1768776446168,0.96859631,142.68,142.65,8.21642365]
[1768776448579,0.0363615,142.68,142.65,8.21642365]
[1768776448779,7.00819959,142.69,142.65,8.21642365]
[1768776450784,0.55020919,142.68,142.65,7.01002926]
[1768776451989,0.55020919,142.68,142.65,8.18652911]
[1768776452988,0.4902092,142.68,142.65,8.18652911]
[1768776460094,0.43020921,142.68,142.65,8.18652911]
[1768776460772,7.00819959,142.69,142.65,8.18652911]
[1768776462697,7.05302682,142.69,142.65,8.18652911]
[1768776475402,7.05302682,142.69,142.65,8.29340606]
[1768776476111,7.05302682,142.69,142.66,1.2833768]
[1768776493433,0.16398021,142.68,142.64,0.2]
[1768776493617,0.16398021,142.67,142.64,30.2]
[1768776493931,2.27774269,142.67,142.64,30.2]
[1768776494433,0.16398021,142.67,142.64,0.2]
[1768776494928,7.00967334,142.66,142.64,0.2]
[1768776497021,7.00967334,142.66,142.64,1.4833768]
[1768776497608,7.00967334,142.66,142.64,0.2]
[1768776498834,7.18882845,142.66,142.64,0.2]
[1768776500236,7.12882846,142.66,142.64,0.2]
[1768776503338,7.06882847,142.66,142.64,0.2]
[1768776513461,7.00918202,142.67,142.64,0.2]
[1768776513662,7.23140498,142.67,142.64,0.2]
[1768776520273,7.23140498,142.67,142.64,1.54911014]
[1768776531871,7.23140498,142.67,142.64,0.2]
[1768776532079,7.00992099,142.66,142.64,1.54911014]
[1768776532381,7.00992099,142.66,142.64,0.2]
[1768776532681,7.00992099,142.66,142.64,1.47111172]
[1768776532977,7.27975194,142.66,142.64,0.2]
[1768776533360,7.00992099,142.66,142.64,1.47111172]
[1768776535184,7.00992099,142.66,142.64,1.44111172]
[1768776548773,7.00918202,142.67,142.64,1.44111172]
[1768776553401,7.31295393,142.67,142.64,1.44111172]
[1768776553606,7.00918202,142.67,142.64,1.44111172]
[1768776554602,7.31445379,142.67,142.64,1.44111172]
[1768776563008,7.00918202,142.67,142.64,1.44111172]
[1768776566993,7.00918202,142.67,142.64,1.41111172]
[1768776567315,7.33372996,142.67,142.64,1.41111172]
[1768776569215,7.33372996,142.67,142.64,1.38111172]
[1768776569718,7.00918202,142.67,142.64,1.38111172]
[1768776573324,7.00918202,142.67,142.64,1.35111172]
[1768776601646,7.37109093,142.67,142.64,1.35111172]
[1768776602849,7.00918202,142.67,142.64,1.35111172]
[1768776622265,7.38669669,142.67,142.64,1.35111172]
[1768776625445,7.38669669,142.67,142.64,1.32111172]
[1768776645585,24.90965176,142.67,142.61,7.01195372]
[1768776645762,24.90965176,142.67,142.62,2.11428355]
[1768776647579,24.90965176,142.67,142.63,1.4220193]
[1768776648279,31.92160548,142.67,142.63,1.4220193]
[1768776652488,31.54409081,142.67,142.63,1.4220193]
[1768776652692,8.41051857,142.66,142.63,1.4220193]
[1768776653283,8.41051857,142.66,142.63,3.53630285]
[1768776653570,8.41051857,142.66,142.63,1.4220193]
[1768776656675,7.01010786,142.66,142.63,1.4220193]
[1768776658869,8.41051857,142.66,142.63,1.4220193]
[1768776662707,25.9325478,142.67,142.63,1.4220193]
[1768776673007,1.40041071,142.7,142.66,1.44974671]
[1768776673188,1.40041071,142.7,142.67,1.44974671]
[1768776673690,25.92616626,142.71,142.67,1.44974671]
[1768776673891,46.96182169,142.71,142.67,1.44974671]
[1768776674887,46.96182169,142.71,142.68,1.44974671]
[1768776676312,8.4084123,142.7,142.68,1.44974671]
[1768776678319,8.4084123,142.7,142.67,1.44974671]
[1768776678617,71.2084123,142.7,142.67,1.44974671]
[1768776679304,69.80800159,142.7,142.67,1.44974671]
[1768776681811,71.2084123,142.7,142.67,1.44974671]
[1768776703649,62.8,142.7,142.67,1.44974671]
[1768776704937,8.42316576,142.71,142.67,1.44974671]
[1768776705459,8.42316576,142.71,142.67,8.45890705]
[1768776705752,8.42316576,142.71,142.67,8.45483736]
[1768776705954,8.42316576,142.71,142.68,1.44567702]
[1768776743079,7.00732365,142.71,142.68,1.44567702]
[1768776763107,7.00732365,142.71,142.69,1.47700093]
[1768776768311,8.51227829,142.71,142.69,1.47700093]
[1768776768888,7.00732365,142.71,142.69,1.47700093]
[1768776769710,8.51177942,142.72,142.69,1.47700093]
[1768776769881,1.50495464,142.73,142.69,3.59014504]
[1768776770081,1.50495464,142.74,142.7,1.47700093]
[1768776770382,1.50495464,142.74,142.71,1.47700093]
[1768776770979,8.51084707,142.74,142.71,1.47700093]
[1768776772580,8.51084707,142.74,142.71,1.44700093]
[1768776775513,10.62399118,142.74,142.71,1.44700093]
[1768776775905,8.51084707,142.74,142.71,1.44700093]
[1768776777099,8.53941504,142.73,142.7,3.56431025]
[1768776777716,8.53941504,142.73,142.71,1.45116614]
[1768776777917,8.53941504,142.73,142.71,1.42116614]
[1768776778293,8.53887929,142.74,142.71,1.42116614]
[1768776780618,8.53887929,142.74,142.65,1.45116614]
[1768776780619,2.11314411,142.72,142.65,1.45116614]
[1768776780791,17.45314411,142.73,142.66,30.0]
[1768776780792,2.11314411,142.69,142.66,30.0]
[1768776780993,2.11314411,142.69,142.65,1.45116614]
[1768776781417,2.11314411,142.7,142.65,1.45116614]
[1768776781714,7.01050893,142.68,142.65,1.45116614]
[1768776783008,7.01050893,142.68,142.65,3.56431025]
[1768776783319,7.01050893,142.68,142.66,1.45116614]
[1768776787614,7.01050893,142.68,142.62,1.45116614]
[1768776787615,31.48093123,142.68,142.62,1.45116614]
[1768776787809,33.59407534,142.68,142.63,1.45116614]
[1768776788010,26.6435664,142.68,142.63,1.45116614]
[1768776788194,7.01184712,142.67,142.63,1.45116614]
[1768776788594,7.00967334,142.66,142.63,1.45116614]
[1768776789213,7.01184712,142.65,142.63,1.45116614]
[1768776789813,14.02202548,142.65,142.63,1.45116614]
[1768776791526,7.00918202,142.67,142.63,3.56431025]
[1768776791999,7.00918202,142.67,142.63,1.45116614]
[1768776792907,82.43605136,142.68,142.63,3.56549056]
[1768776793298,80.32172694,142.68,142.64,1.45116614]
[1768776793494,80.32172694,142.68,142.64,3.56549056]
[1768776795320,87.33041771,142.68,142.64,3.56549056]
[1768776805629,87.33041771,142.68,142.64,1.45116614]
[1768776810112,7.00869077,142.68,142.66,1.49780317]
[1768776810430,110.41159767,142.72,142.6,15.54]
[1768776810431,7.00825614,142.69,142.68,1.49780317]
[1768776810634,7.00825614,142.69,142.68,1.46780317]
[1768776811832,7.00721743,142.71,142.68,1.46780317]
[1768776815629,24.52526101,142.71,142.62,1.49780317]
[1768776815862,1.41034688,142.7,142.65,2.11432442]
[1768776816313,26.63958543,142.71,142.63,15.36]
[1768776816314,25.93560789,142.71,142.66,2.11432442]
[1768776816513,1.41034688,142.7,142.66,2.11432442]
[1768776817229,7.00819959,142.69,142.66,2.11432442]
[1768776817431,7.00788418,142.7,142.66,2.11432442]
[1768776817810,7.00788418,142.7,142.67,1.47093149]
[1768776818230,8.36925131,142.7,142.67,1.47093149]
[1768776818610,8.3687149,142.71,142.68,1.47093149]
[1768776821333,1.36136713,142.7,142.65,1.47093149]
[1768776821529,1.36136713,142.7,142.66,1.47093149]
[1768776821918,1.36136713,142.7,142.67,1.47093149]
[1768776823620,8.36949085,142.7,142.67,1.47093149]
[1768776834441,1.38551586,142.69,142.66,10.57817904]
[1768776835154,1.38551586,142.69,142.67,1.45419079]
[1768776840444,7.0073765,142.71,142.68,1.45419079]
[1768776840649,1.38551586,142.74,142.71,1.45419079]
[1768776840851,1.38551586,142.74,142.71,18.87851521]
[1768776841032,1.38551586,142.74,142.71,18.84851521]
[1768776842753,1.38551586,142.74,142.71,25.85548563]
[1768776843754,1.38551586,142.74,142.71,23.74116121]
[1768776844648,1.38551586,142.74,142.72,1.45419079]
[1768776844852,1.38551586,142.74,142.71,16.79419079]
[1768776845152,1.38551586,142.73,142.71,16.79419079]
[1768776845338,1.38551586,142.73,142.71,16.76419079]
[1768776845539,1.38551586,142.73,142.71,15.31]
[1768776857861,1.38551586,142.73,142.71,16.76419079]
[1768776862772,7.00586317,142.74,142.72,1.50817673]
[1768776865576,8.42368161,142.74,142.72,1.50817673]
[1768776867781,7.00586317,142.74,142.72,1.50817673]
[1768776869595,16.45643752,142.79,142.73,2.11257001]
[1768776869887,103.4,142.81,142.72,7.00659926]
[1768776869888,1.41781844,142.8,142.75,2.11257001]
[1768776870073,1.41781844,142.81,142.77,2.11257001]
[1768776870256,1.41781844,142.81,142.73,2.11257001]
[1768776870257,0.1,142.82,142.78,15.34]
[1768776870462,1.51781844,142.82,142.78,15.34]
[1768776870962,1.51781844,142.82,142.78,22.34365424]
[1768776873478,1.51781844,142.82,142.78,24.45622425]
[1768776874977,0.1,142.82,142.8,0.0380443]
[1768776875277,0.1,142.82,142.79,9.15366831]
[1768776875575,1.51781844,142.82,142.8,2.11257001]
[1768776876353,0.1,142.82,142.8,2.11257001]
[1768776876586,0.1,142.83,142.81,17.45257001]
[1768776876776,1.51781844,142.85,142.82,2.11257001]
[1768776879566,1.51781844,142.85,142.82,2.22525297]
[1768776880972,1.51781844,142.85,142.82,0.11268296]
[1768776882673,8.5182018,142.85,142.82,0.11268296]
[1768776885873,8.5182018,142.85,142.83,0.27255168]
[1768776885874,0.1,142.85,142.83,0.27255168]
[1768776889384,1.71284264,142.85,142.81,24.82800239]
[1768776889704,1.71284264,142.85,142.81,24.45476261]
[1768776889996,1.71284264,142.85,142.82,0.37323978]
[1768776891681,1.71284264,142.85,142.83,2.11257001]
[1768776891875,7.09928393,142.88,142.85,0.14576056]
[1768776892078,7.09928393,142.88,142.85,2.25833057]
[1768776893273,7.09928393,142.88,142.85,0.14576056]
[1768776900387,8.78202254,142.88,142.85,0.14576056]
[1768776903693,1.68273861,142.87,142.84,17.45257001]
[1768776904599,6.99942558,142.87,142.84,15.34]
[1768776904788,1.68273861,142.86,142.84,15.34]
[1768776907009,1.68273861,142.86,142.85,30.0]
[1768776907597,1.68273861,142.86,142.85,28.02483933]
[1768776908418,1.68273861,142.86,142.85,22.49077368]
[1768776908813,6.99942558,142.87,142.85,22.49077368]
[1768776910020,7.03732782,142.87,142.85,22.49077368]
[1768776910719,7.09907145,142.88,142.85,24.14268293]
[1768776911018,7.15559892,142.88,142.85,24.14268293]
[1768776922817,7.09907145,142.88,142.86,1.89909236]
[1768776923023,7.09907145,142.88,142.86,31.89909236]
[1768776929842,7.09907145,142.88,142.86,30.0]
[1768776930136,7.09907145,142.88,142.86,31.89909236]
[1768776932443,7.09907145,142.88,142.86,31.86909236]
[1768776934844,7.09907145,142.88,142.86,29.97]
[1768776939847,2.10794743,142.87,142.85,1.89909236]
[1768776940143,2.10794743,142.87,142.84,1.74560185]
[1768776940535,2.10794743,142.86,142.83,1.74560185]
[1768776940727,2.10794743,142.86,142.83,17.08560185]
[1768776942347,9.10801389,142.86,142.83,17.08560185]
[1768776943430,7.00006646,142.86,142.83,17.08560185]
[1768776947660,6.99937005,142.87,142.83,17.08560185]
[1768776947850,9.10731748,142.87,142.83,17.08560185]
[1768776949756,9.10731748,142.87,142.84,1.74560185]
[1768776950157,9.10731748,142.87,142.83,15.34]
[1768776950357,9.10731748,142.87,142.83,17.08560185]
[1768776950654,0.1,142.88,142.86,1.74560185]
[1768776953645,0.1,142.88,142.87,1.763794]
[1768776964362,0.1,142.88,142.87,1.733794]
[1768776966968,1.15093067,142.87,142.83,22.34112151]
[1768776967166,3.2588781,142.87,142.83,22.34112151]
[1768776967750,1.15093067,142.87,142.83,22.34112151]
[1768776968676,2.10794743,142.86,142.83,22.34112151]
[1768776968974,2.10794743,142.86,142.84,1.763794]
[1768776969550,3.24185035,142.86,142.83,22.34112151]
[1768776970175,1.13390292,142.86,142.83,24.10491551]
[1768776972657,9.10739017,142.87,142.84,1.763794]
[1768776972658,3.21664539,142.87,142.84,1.763794]
[1768776972972,1.10869796,142.87,142.84,1.763794]
[1768776973177,1.10869796,142.87,142.84,1.733794]
[1768776974079,7.09906798,142.88,142.84,1.733794]
[1768776975454,10.29571266,142.88,142.84,1.733794]
[1768776976583,1.07213207,142.87,142.84,1.733794]
[1768776977983,10.24721138,142.88,142.84,1.733794]
[1768776980392,1.0087599,142.86,142.83,24.10491551]
[1768776981392,10.10101882,142.87,142.84,1.763794]
[1768776981577,3.1015742,142.87,142.84,1.763794]
[1768776983472,0.99341581,142.87,142.84,1.763794]
[1768776983674,3.1015742,142.87,142.84,1.763794]
[1768776983973,8.03284598,142.88,142.85,1.46324945]
[1768776984185,10.14100437,142.88,142.85,1.46324945]
[1768776984790,8.03284598,142.88,142.85,1.46324945]
[1768776990304,7.09906421,142.88,142.85,1.46324945]
[1768776995200,9.99053374,142.88,142.85,1.46324945]
[1768776995512,7.88237535,142.88,142.85,1.46324945]
[1768776999392,7.09906421,142.88,142.85,1.46324945]
[1768777000806,0.70894776,142.87,142.82,1.41054423]
[1768777000992,2.81710615,142.87,142.84,1.41054423]
[1768777002017,0.68528355,142.86,142.83,31.41054423]
[1768777002205,0.68528355,142.86,142.83,1.41054423]
[1768777003098,9.78142176,142.87,142.83,1.41054423]
[1768777011332,9.78142176,142.87,142.83,8.41187144]
[1768777012022,9.78142176,142.87,142.84,1.41054423]
[1768777012922,17.59720044,142.88,142.86,1.38107143]
[1768777012923,0.1,142.88,142.86,1.38107143]
[1768777013225,0.1,142.88,142.86,1.35107143]
[1768777013601,0.1,142.88,142.86,1.32107143]
[1768777018928,0.1,142.88,142.85,8.38142144]
[1768777019129,2.76344535,142.88,142.85,1.38107143]
[1768777021431,0.53666765,142.87,142.84,7.00063682]
[1768777021625,0.53666765,142.87,142.8,1.38107143]
[1768777021626,0.53666765,142.84,142.8,1.38107143]
[1768777021808,2.58482605,142.84,142.81,1.38107143]
[1768777022008,2.58482605,142.84,142.81,31.38107143]
[1768777022207,0.47666766,142.84,142.81,31.38107143]
[1768777023628,0.47666766,142.84,142.81,1.38107143]
[1768777024021,9.585835,142.84,142.81,1.38107143]
[1768777027246,9.52583501,142.84,142.81,1.38107143]
[1768777031343,2.52482606,142.84,142.81,1.38107143]
[1768777034421,0.41666767,142.84,142.81,1.38107143]
[1768777034744,0.35666768,142.84,142.81,1.38107143]
[1768777039242,0.35666768,142.84,142.81,8.38335377]
[1768777041136,0.29666769,142.84,142.81,8.38335377]
[1768777047644,7.29762785,142.84,142.81,1.38107143]
[1768777047828,9.40701202,142.84,142.81,1.38107143]
[1768777048332,7.29762785,142.84,142.81,1.38107143]
[1768777048533,9.40701202,142.84,142.81,1.38107143]
[1768777050252,0.0706564,142.83,142.77,1e-08]
[1768777050430,2.18004057,142.79,142.77,30.0]
[1768777050753,2.18004057,142.79,142.76,1.25353632]
[1768777050940,0.0706564,142.79,142.76,1.25353632]
[1768777051148,0.0706564,142.79,142.76,16.59353632]
[1768777051652,7.07394794,142.79,142.76,16.59353632]
[1768777058352,17.50599574,142.81,142.77,1.17214678]
[1768777058568,19.61537991,142.81,142.77,1.17214678]
[1768777059761,26.61769067,142.81,142.77,1.17214678]
[1768777069666,27.75244627,142.81,142.75,2.10938417]
[1768777069856,1.1347556,142.8,142.76,15.34]
[1768777070545,3.24413977,142.8,142.76,15.34]
[1768777071474,7.00329154,142.79,142.76,15.34]
[1768777071770,1.12526114,142.82,142.78,1.17214678]
[1768777072067,7.00194473,142.82,142.79,1.17214678]
[1768777072274,8.18056118,142.82,142.79,16.51214678]
[1768777073267,7.00194473,142.82,142.79,1.17214678]
[1768777073456,8.09683068,142.81,142.79,1.17214678]
[1768777075376,7.00259627,142.81,142.79,1.17214678]
[1768777075672,7.00259627,142.81,142.79,1e-08]
[1768777084776,1.09423441,142.81,142.79,1e-08]
[1768777084960,8.0956718,142.83,142.79,1e-08]
[1768777089181,7.00143739,142.83,142.79,1e-08]
[1768777090283,8.0956718,142.83,142.79,1e-08]
[1768777107302,7.00143739,142.83,142.79,1e-08]
[1768777108299,8.15591243,142.83,142.79,1e-08]
[1768777122718,1.19774488,142.82,142.79,1e-08]
[1768777135534,1.19774488,142.82,142.78,23.52095309]
[1768777139515,1.16036975,142.81,142.78,15.34]
[1768777140626,1.16036975,142.81,142.78,22.34376942]
[1768777143028,1.16036975,142.84,142.8,2.10959703]
[1768777143209,1.16036975,142.84,142.81,16.48722495]
[1768777143637,1.16036975,142.84,142.81,18.59682198]
[1768777144135,1.16036975,142.84,142.81,16.48722495]
[1768777145457,1.16036975,142.84,142.82,7.00182047]
[1768777145914,1.16036975,142.86,142.83,1.17722495]
[1768777146441,1.16036975,142.86,142.84,15.34]
[1768777148130,1.16036975,142.87,142.84,53.51774051]
[1768777148310,1.16036975,142.86,142.84,45.34]
[1768777149636,1.16036975,142.85,142.84,45.34]
[1768777150334,1.16036975,142.85,142.84,45.31]
[1768777162445,1.16036975,142.85,142.84,30.0]
[1768777163136,1.16036975,142.85,142.84,29.97]
[1768777164744,1.16036975,142.85,142.84,29.94]
[1768777200272,7.00035001,142.85,142.82,15.34]
[1768777200454,24.50122505,142.85,142.78,1.19357879]
[1768777200654,2.10869539,142.82,142.73,35.02884746]
[1768777200858,2.10869539,142.81,142.76,1.19357879]
[1768777201646,24.50122505,142.85,142.76,1.19357879]
[1768777201950,24.50122505,142.85,142.78,1.19357879]
[1768777202165,2.10869539,142.82,142.78,1.19357879]
[1768777202366,7.00201978,142.82,142.78,1.19357879]
[1768777202564,9.11071517,142.82,142.78,1.19357879]
[1768777203158,7.00201978,142.82,142.78,1.19357879]
[1768777203372,9.11071517,142.82,142.78,1.19357879]
[1768777204079,6.94201979,142.82,142.78,1.19357879]
[1768777204459,6.8820198,142.82,142.78,1.19357879]
[1768777204676,7.00152659,142.83,142.79,1.19357879]
[1768777204859,9.11022198,142.83,142.79,1.19357879]
[1768777205173,7.00152659,142.83,142.79,1.19357879]
[1768777205349,9.11022198,142.83,142.77,23.53768502]
[1768777205671,9.11022198,142.83,142.78,8.1972256]
[1768777205981,2.13023513,142.8,142.76,1.19357879]
[1768777206350,0.02153974,142.79,142.76,1.19357879]
[1768777207062,0.03834523,142.77,142.74,1.19357879]
[1768777207369,2.10869539,142.78,142.73,1.19357879]
[1768777207562,2.10869539,142.78,142.73,8.19981278]
[1768777208060,2.10869539,142.76,142.72,16.53357879]
[1768777208259,2.10869539,142.77,142.72,23.54028085]
[1768777209171,9.11335661,142.77,142.72,23.54028085]
[1768777209346,0.03303413,142.76,142.72,23.54028085]
[1768777210267,2.14172952,142.76,142.73,1.19357879]
[1768777210454,0.04926717,142.75,142.72,1.19357879]
[1768777210653,0.04926717,142.74,142.71,0.2]
[1768777210854,0.04926717,142.71,142.7,0.15073283]
[1768777211049,0.04926717,142.71,142.66,1.39357879]
[1768777211050,24.52697966,142.7,142.66,1.39357879]
[1768777211257,2.10869539,142.69,142.66,1.39357879]
[1768777211647,24.52697966,142.7,142.66,1.39357879]
[1768777211854,9.05640387,142.7,142.66,0.2]
[1768777212057,2.14060425,142.69,142.66,0.2]
[1768777212263,24.46697967,142.7,142.66,0.2]
[1768777212454,26.57567506,142.7,142.66,1.39357879]
[1768777212656,26.57567506,142.7,142.66,0.2]
[1768777212880,24.46697967,142.7,142.66,0.2]
[1768777213079,26.57567506,142.7,142.66,0.2]
[1768777213279,26.57567506,142.7,142.66,1.39357879]
[1768777213484,2.10869539,142.69,142.66,1.39357879]
[1768777213858,2.10869539,142.69,142.66,1e-08]
[1768777214054,2.10869539,142.68,142.65,1e-08]
[1768777214358,0.03223506,142.67,142.65,1e-08]
[1768777214677,2.10869539,142.68,142.65,1e-08]
[1768777214678,0.03223506,142.68,142.65,1e-08]
[1768777214882,2.10869539,142.67,142.65,1e-08]
[1768777215182,2.10869539,142.68,142.66,1.19357879]
[1768777216489,9.11786232,142.68,142.66,1.19357879]
[1768777216783,2.10869539,142.67,142.65,1e-08]
[1768777217380,10.34648008,142.68,142.65,1e-08]
[1768777217581,2.10869539,142.67,142.65,1e-08]
[1768777217787,9.11790451,142.67,142.65,1e-08]
[1768777218586,7.00920912,142.67,142.65,1.1935788]
[1768777218964,2.10869539,142.68,142.65,1.1935788]
[1768777219384,0.71583263,142.68,142.66,1.19357879]
[1768777219768,10.34593902,142.69,142.66,1.19357879]
[1768777220389,8.23724363,142.69,142.66,1.19357879]
[1768777220570,10.34593902,142.69,142.66,1.19357879]
[1768777220985,9.12242578,142.69,142.66,1.19357879]
[1768777221889,2.11379991,142.69,142.66,1.19357879]
[1768777222096,3.34241767,142.7,142.66,1.19357879]
[1768777222798,10.35013638,142.7,142.66,1.19357879]
[1768777224102,10.3502411,142.7,142.67,1.33541772]
[1768777225193,7.00672645,142.72,142.68,1.33541772]
[1768777225491,3.42862473,142.7,142.67,1.33541772]
[1768777226995,3.42862473,142.71,142.67,1.33541772]
[1768777227373,8.32209769,142.71,142.67,1.33541772]
[1768777228397,1.31482482,142.7,142.67,1.33541772]
[1768777228581,3.42862473,142.7,142.67,1.33541772]
[1768777229207,1.31482482,142.7,142.67,1.33541772]
[1768777229376,8.32268858,142.7,142.67,1.33541772]
[1768777229581,7.00786376,142.7,142.67,1.33541772]
[1768777229779,8.32268858,142.7,142.67,1.33541772]
[1768777231599,1.31482482,142.7,142.67,1.33541772]
[1768777231796,7.00727822,142.71,142.68,1.33541772]
[1768777232095,10.43539698,142.72,142.68,1.30541772]
[1768777232503,1.31482482,142.71,142.68,1.30541772]
[1768777234395,1.31482482,142.7,142.67,8.34451105]
[1768777235404,1.31482482,142.71,142.68,1.33541772]
[1768777235901,1.31482482,142.71,142.68,1.30541772]
[1768777236510,1.31482482,142.71,142.68,8.31409953]
[1768777236802,9.12070582,142.72,142.68,8.31409953]
[1768777236803,10.43553064,142.72,142.68,7.00868181]
[1768777236979,7.00690591,142.72,142.68,7.00868181]
[1768777237710,7.00690591,142.72,142.69,15.34]
[1768777237878,1.49265485,142.74,142.71,0.05968808]
[1768777238083,3.60645476,142.75,142.71,0.05968808]
[1768777238284,1.49265485,142.74,142.71,0.05968808]
[1768777238479,1.49265485,142.76,142.71,0.05968808]
[1768777238684,3.60645476,142.76,142.71,0.05968808]
[1768777239206,1.49265485,142.76,142.71,0.05968808]
[1768777239392,3.60645476,142.76,142.71,0.05968808]
[1768777239790,1.49265485,142.76,142.71,0.05968808]
[1768777239980,3.60645476,142.76,142.71,0.05968808]
[1768777240483,1.49265485,142.76,142.71,0.05968808]
[1768777240687,3.60645476,142.76,142.71,0.05968808]
[1768777241305,1.49265485,142.76,142.71,0.05968808]
[1768777241612,3.60645476,142.76,142.71,0.05968808]
[1768777241784,2.11379991,142.77,142.71,0.05968808]
[1768777241985,9.11774433,142.78,142.71,2.11379991]
[1768777242196,9.11774433,142.78,142.72,2.11379991]
[1768777242403,8.49659927,142.78,142.73,15.34]
[1768777243015,8.49659927,142.78,142.74,7.04395598]
[1768777244702,1.49265485,142.76,142.73,15.34]
[1768777245015,1.49265485,142.76,142.73,22.34605929]
[1768777246023,1.49265485,142.76,142.73,15.34]
[1768777246229,3.60645476,142.76,142.73,15.34]